fUSD/lending_fUSD_20251025
["ID","MTS","AMOUNT","RATE_DAILY","PERIOD"]
[392342233,1761369032055,-65.1556316,0.000329,2]
[392342234,1761369032076,-1934.8443684,0.000329,2]
[392342235,1761369032085,-1769.0,0.000331,5]
[392342236,1761369032094,-198.01,0.00033115,2]
[392342237,1761369032103,-157.51440231,0.00033115,7]
[392342238,1761369032112,-150.0,0.00033115,7]
[392342239,1761369032121,-150.00000001,0.00033115,7]
[392342240,1761369032130,-150.0,0.00033115,7]
[392342241,1761369032139,-433.703,0.00033165,34]
[392342242,1761369032148,-173.98,0.00033165,2]
[392342243,1761369032158,-666.0,0.00034016,3]
[392342244,1761369032167,-152.0,0.00034229,4]
[392342245,1761369032176,-5887.72,0.00034391,2]
[392342246,1761369032186,-26818.42772135,0.00034463,7]
[392342247,1761369032197,-436.83567558,0.00034463,7]
[392342250,1761369037914,-348.60390342,0.0003439,7]
[392342251,1761369037923,-2744.73660307,0.00034463,7]
[392342252,1761369037933,-389.51,0.00034527,2]
[392342253,1761369037943,-476.4830027,0.00034529,2]
[392342254,1761369037953,-161.0,0.00035,20]
[392342255,1761369037963,-162.42,0.00035,20]
[392342256,1761369037973,-1000.0,0.00035344,2]
[392342257,1761369037983,-500.0,0.00035451,30]
[392342258,1761369037992,-1190.10579216,0.00035502,3]
[392342259,1761369038004,-1190.10579216,0.00035592,3]
[392342260,1761369038013,-151.16919267,0.00035602,15]
[392342261,1761369038023,-11610.50727132,0.00035602,2]
[392342262,1761369038033,-1000.0,0.00035618,2]
[392342263,1761369038042,-500.0,0.00035639,2]
[392342264,1761369038051,-295.44213519,0.00035646,30]
[392342266,1761369040208,-210.03358987,0.00035646,30]
[392342267,1761369040218,-500.0,0.00035673,30]
[392342268,1761369040228,-247.21272378,0.00035691,15]
[392342269,1761369040238,-241.32989316,0.00035691,15]
[392342270,1761369040247,-500.0,0.00035691,15]
[392342271,1761369040257,-382.79729774,0.00035691,15]
[392342272,1761369040266,-100.98249545,0.00035692,2]
[392342273,1761369040303,-260.20942002,0.00035692,2]
[392342274,1761369040318,-122.59823383,0.00035692,2]
[392342275,1761369040327,-69574.6504273,0.00035692,2]
[392342276,1761369040337,-163.11,0.00035692,2]
[392342277,1761369040347,-2710.56087694,0.00035701,2]
[392342278,1761369040356,-449178.66,0.00035702,7]
[392342279,1761369040366,-476.4830027,0.00035702,7]
[392342280,1761369040375,-120503.72926035,0.00035702,2]
[392342281,1761369040385,-500.0,0.00035776,30]
[392342282,1761369040394,-152.0,0.00035786,5]
[392342283,1761369040405,-6541.0,0.00035879,2]
[392342284,1761369040414,-558.0,0.00035879,2]
[392342285,1761369040424,-6458.0,0.00035879,2]
[392342286,1761369040434,-3488.0,0.00035879,2]
[392342287,1761369040443,-1000.0,0.00035892,2]
[392342288,1761369040452,-600.0,0.000359,13]
[392342289,1761369040462,-200.0,0.000359,13]
[392342290,1761369040471,-300.0,0.00035953,2]
[392342291,1761369040480,-11610.50727124,0.00035958,2]
[392342292,1761369040490,-500.0,0.00036,30]
[392342293,1761369040499,-160.0,0.00036,30]
[392342294,1761369040512,-160.0,0.00036,30]
[392342295,1761369040522,-500.0,0.00036048,30]
[392342296,1761369040531,-826.01951989,0.00036112,2]
[392342297,1761369040540,-1000.0,0.00036166,2]
[392342298,1761369040549,-518.48352839,0.00036182,30]
[392342299,1761369040559,-510.0080305,0.00036184,30]
[392342300,1761369040568,-826.01951989,0.00036259,2]
[392342301,1761369040578,-11610.50727124,0.00036314,2]
[392342302,1761369040587,-9386.42,0.00036348,2]
[392342303,1761369040597,-1000.0,0.0003644,2]
[392342304,1761369040607,-863.0,0.00036483,2]
[392342305,1761369040617,-160.0,0.000365,30]
[392342306,1761369040627,-160.0,0.000365,30]
[392342307,1761369040638,-500.0,0.00036509,30]
[392342308,1761369040647,-250.0,0.00036514,2]
[392342309,1761369040657,-315.46309343,0.00036557,2]
[392342310,1761369040666,-2000.0,0.000366,2]
[392342311,1761369040676,-205.30496451,0.00036604,2]
[392342312,1761369040686,-760.65841123,0.00036614,2]
[392342313,1761369040695,-516.6200901,0.00036618,30]
[392342314,1761369040708,-500.0,0.0003664,30]
[392342315,1761369040718,-826.01951989,0.00036642,2]
[392342316,1761369040727,-11610.50727124,0.00036669,2]
[392342317,1761369040737,-994.0,0.00036674,2]
[392342318,1761369040748,-150.0,0.00036697,7]
[392342319,1761369040760,-1300.0,0.000367,13]
[392342320,1761369040771,-946.31318,0.000367,22]
[392342321,1761369040780,-164.96209115,0.00036704,2]
[392342322,1761369040791,-150.64,0.00036704,2]
[392342323,1761369040801,-151.0,0.00036711,14]
[392342324,1761369040810,-1000.0,0.00036714,2]
[392342325,1761369040820,-891.0,0.00036714,5]
[392342326,1761369040831,-205864.790661,0.00036714,30]
[392342327,1761369040840,-687266.60211928,0.00036714,30]
[392342328,1761369040932,-4644.05431043,0.00036714,30]
[392342360,1761369715358,425.27777336,0.00036713,30]
[392342361,1761369818172,929.41,0.0001754,2]
[392342362,1761369818363,929.41,0.00018463,2]
[392342363,1761369818557,929.41,0.00019386,2]
[392342364,1761369907380,46747.68882817,0.00015,2]
[392342365,1761369907405,150000.0,0.00015,2]
[392342366,1761369907450,23193.93040137,0.00015,2]
[392342367,1761369909901,5078.64923007,0.000154,2]
[392342369,1761369939943,5050.0,0.00036713,37]
[392342370,1761369955445,10800.96567081,0.0002,2]
[392342372,1761369960615,1516.85760238,0.0002,2]
[392342373,1761370015831,30896.92,0.000162,5]
[392342374,1761370046351,4704.22945326,0.0002,2]
[392342377,1761370070445,6435.27978334,0.00018,2]
[392342378,1761370083901,9200.32637614,0.0002,2]
[392342381,1761370103096,3579.44881548,0.0002,2]
[392342384,1761370118116,16902.9338785,0.0002,2]
[392342392,1761370232163,-150.0,0.00020087,2]
[392342393,1761370232172,-500.0,0.00020087,2]
[392342394,1761370232181,-929.41,0.00020309,2]
[392342395,1761370232190,-316.83135485,0.00021,2]
[392342396,1761370232199,-929.41,0.00021233,2]
[392342397,1761370232208,-2371.98383224,0.00022,2]
[392342398,1761370232218,-929.41,0.00022156,2]
[392342399,1761370232226,-929.41,0.00023079,2]
[392342400,1761370232236,-432.60371868,0.00023101,7]
[392342401,1761370232244,-432.60371868,0.00023101,7]
[392342402,1761370232254,-151.0,0.00023886,2]
[392342403,1761370232262,-151.0,0.00023886,2]
[392342404,1761370232271,-151.0,0.00023886,2]
[392342405,1761370232281,-151.0,0.00023886,2]
[392342406,1761370232290,-151.0,0.00023886,2]
[392342407,1761370232299,-151.0,0.00023886,2]
[392342408,1761370232308,-151.0,0.00023886,2]
[392342409,1761370232317,-151.0,0.00023886,2]
[392342410,1761370232327,-151.0,0.00023886,2]
[392342411,1761370232336,-151.0,0.00023886,2]
[392342412,1761370232350,-208.47794848,0.00023886,2]
[392342413,1761370232359,-17604.41760823,0.000239,2]
[392342414,1761370232370,-41081.83907338,0.000239,2]
[392342415,1761370232379,-929.41,0.00024002,2]
[392342416,1761370232390,-929.41,0.00024925,2]
[392342417,1761370232399,-168.93092521,0.00024999,2]
[392342418,1761370232408,-617.95810842,0.00024999,2]
[392342419,1761370232417,-173.04890664,0.00024999,2]
[392342420,1761370232428,-404.45913415,0.00025,2]
[392342421,1761370232437,-1291.24029093,0.00025,2]
[392342422,1761370232446,-987.56636253,0.00025,3]
[392342423,1761370232457,-852.179946,0.00025,3]
[392342424,1761370232473,-2893.76828631,0.00025,3]
[392342425,1761370232482,-360.0,0.00025,2]
[392342426,1761370232492,-25166.22851848,0.00025,2]
[392342427,1761370232501,-1049.33399476,0.00025,2]
[392342428,1761370232511,-164.93107429,0.00025,2]
[392342429,1761370232520,-2865.05447213,0.00025,2]
[392342430,1761370232529,-503.40378919,0.00025,7]
[392342431,1761370232538,-216.30185934,0.00025713,2]
[392342432,1761370232547,-929.41,0.00025848,2]
[392342433,1761370232557,-11376.42356849,0.00025879,2]
[392342434,1761370232568,-565.0,0.00025879,2]
[392342435,1761370232579,-5544.67636339,0.00025879,2]
[392342436,1761370232591,-2810.52105742,0.00026,10]
[392342437,1761370232600,-27093.37704016,0.000264,2]
[392342438,1761370232610,-166.66,0.00026413,2]
[392342440,1761370232619,-929.41,0.00026772,2]
[392342442,1761370232629,-250.0,0.00027,2]
[392342444,1761370232638,-166.66,0.00027285,2]
[392342446,1761370232647,-4324.06298428,0.0002739,7]
[392342448,1761370232656,-929.41,0.00027695,2]
[392342450,1761370232666,-5016.61476137,0.00028,2]
[392342451,1761370232675,-9925.17860364,0.00028,2]
[392342452,1761370232706,-3149.12,0.00028,2]
[392342455,1761370238246,-4702.04041598,0.00028,2]
[392342456,1761370238257,-564.391,0.00028,2]
[392342478,1761370329597,175.27237453,0.00036713,120]
[392342479,1761370344919,500.0,0.00019987,2]
[392342481,1761370418326,247.4,0.00036712,30]
[392342484,1761371090997,-1000.0,0.000248,2]
[392342485,1761371091042,-250.0,0.00025092,2]
[392342486,1761371091070,-151.0,0.00025384,2]
[392342487,1761371091098,-151.0,0.00025384,2]
[392342488,1761371091125,-151.0,0.00025384,2]
[392342489,1761371091166,-151.0,0.00025384,2]
[392342490,1761371091196,-151.0,0.00025384,2]
[392342491,1761371091232,-151.0,0.00025384,2]
[392342492,1761371091263,-151.0,0.00025384,2]
[392342493,1761371091296,-151.0,0.00025384,2]
[392342494,1761371091327,-151.0,0.00025384,2]
[392342495,1761371091355,-151.0,0.00025384,2]
[392342496,1761371091388,-151.0,0.00025384,2]
[392342497,1761371091423,-151.0,0.00025384,2]
[392342498,1761371091459,-151.0,0.00025384,2]
[392342499,1761371091493,-151.0,0.00025384,2]
[392342500,1761371091532,-151.0,0.00025384,2]
[392342501,1761371091568,-151.0,0.00025384,2]
[392342502,1761371091603,-151.0,0.00025384,2]
[392342503,1761371091638,-151.0,0.00025384,2]
[392342504,1761371091670,-151.0,0.00025384,2]
[392342505,1761371091700,-151.0,0.00025384,2]
[392342506,1761371091730,-151.0,0.00025384,2]
[392342507,1761371091761,-151.0,0.00025384,2]
[392342508,1761371091790,-151.0,0.00025384,2]
[392342509,1761371091818,-151.0,0.00025384,2]
[392342510,1761371091866,-151.0,0.00025384,2]
[392342511,1761371091906,-151.0,0.00025384,2]
[392342512,1761371091940,-151.0,0.00025384,2]
[392342513,1761371091985,-151.0,0.00025384,2]
[392342514,1761371092019,-151.0,0.00025384,2]
[392342515,1761371092052,-151.0,0.00025384,2]
[392342516,1761371092085,-151.0,0.00025384,2]
[392342517,1761371092120,-151.0,0.00025384,2]
[392342518,1761371092154,-151.0,0.00025384,2]
[392342519,1761371092186,-151.0,0.00025384,2]
[392342520,1761371092226,-151.0,0.00025384,2]
[392342521,1761371092261,-151.0,0.00025384,2]
[392342522,1761371092296,-151.0,0.00025384,2]
[392342523,1761371092329,-151.0,0.00025384,2]
[392342524,1761371092363,-151.0,0.00025384,2]
[392342525,1761371092401,-1200.0,0.00025398,2]
[392342526,1761371092435,-300.0,0.00025398,2]
[392342527,1761371092471,-640.0,0.00025398,2]
[392342528,1761371092506,-2.9496583,0.00025399,2]
[392342529,1761371177158,-1200.0,0.00025398,2]
[392342530,1761371177186,-300.0,0.00025398,2]
[392342531,1761371177214,-1436.1006834,0.00025399,2]
[392342532,1761371250940,153.62,0.00013699,2]
[392342534,1761371284468,-153.62,0.00020187,2]
[392342535,1761371284495,-200.35837864,0.00025272,2]
[392342536,1761371284525,-151.0,0.00025384,2]
[392342537,1761371284553,-151.0,0.00025384,2]
[392342538,1761371284580,-151.0,0.00025384,2]
[392342539,1761371284606,-151.0,0.00025384,2]
[392342540,1761371284633,-151.0,0.00025384,2]
[392342541,1761371284669,-151.0,0.00025384,2]
[392342542,1761371284701,-151.0,0.00025384,2]
[392342543,1761371284731,-151.0,0.00025384,2]
[392342544,1761371284762,-151.0,0.00025384,2]
[392342545,1761371284792,-151.0,0.00025384,2]
[392342546,1761371284822,-151.0,0.00025384,2]
[392342547,1761371284849,-151.0,0.00025384,2]
[392342548,1761371284878,-151.0,0.00025384,2]
[392342549,1761371284907,-151.0,0.00025384,2]
[392342550,1761371284939,-228.747406,0.00025384,2]
[392342551,1761371284970,-171.40764472,0.00025399,2]
[392342559,1761371432482,-718.5240046,0.0002532,2]
[392342560,1761371432492,-250.0,0.0002536,2]
[392342561,1761371432501,-480.0,0.00025398,2]
[392342562,1761371432512,-390.3187453,0.00025399,2]
[392342563,1761371432525,-892.05836572,0.00025399,2]
[392342570,1761371441312,-2981.35603026,0.00025399,2]
[392342571,1761371441323,-33767.7154693,0.00025399,2]
[392342572,1761371441332,-7108.2110595,0.00025399,2]
[392342573,1761371441342,-7913.67275808,0.00025399,2]
[392342580,1761371446477,-1648.81307534,0.00025399,2]
[392342581,1761371639712,-926.8291955,0.00025384,2]
[392342582,1761371639929,-8146.341609,0.00025399,2]
[392342583,1761372178491,250.0,0.00017,2]
[392342584,1761372347435,3000.0,0.00017,60]
[392342585,1761372375417,2000.0,0.0002,2]
[392342586,1761372393061,2000.0,0.0002,2]
[392342587,1761372419507,290.11,0.00012809,2]
[392342588,1761372419718,290.11,0.00013483,2]
[392342589,1761372419917,290.11,0.00014157,2]
[392342590,1761372420690,290.11,0.00014831,2]
[392342591,1761372421026,290.11,0.00015506,2]
[392342592,1761372421066,290.11,0.0001618,2]
[392342593,1761372421200,290.11,0.00016854,2]
[392342594,1761372421244,290.11,0.00017528,2]
[392342595,1761372421370,290.11,0.00018202,2]
[392342596,1761372421582,290.11,0.00018876,2]
[392342597,1761372421805,290.11,0.00019551,2]
[392342601,1761372543935,5000.0,0.00015,10]
[392342602,1761372579188,771.4114345,0.00015,10]
[392342603,1761372579214,4228.5885655,0.00015,10]
[392342607,1761372631469,-290.11,0.00020225,2]
[392342608,1761372631478,-290.11,0.00020899,2]
[392342609,1761372631487,-290.11,0.00021573,2]
[392342610,1761372631498,-294.3402764,0.00021925,2]
[392342611,1761372631527,-1559.41637006,0.00021925,2]
[392342612,1761372631536,-745.66,0.00022247,2]
[392342613,1761372631545,-250.0,0.00022247,2]
[392342614,1761372631555,-290.11,0.00022247,2]
[392342615,1761372631564,-290.11,0.00022921,2]
[392342616,1761372631573,-874.48282953,0.00023264,2]
[392342617,1761372631584,-874.48282953,0.00023459,2]
[392342618,1761372631593,-182.58026006,0.00023501,2]
[392342619,1761372631603,-290.11,0.00023596,2]
[392342620,1761372631612,-166.66,0.00023627,30]
[392342621,1761372631621,-874.48282953,0.00023695,2]
[392342622,1761372631631,-4273.43107052,0.000238,2]
[392342623,1761372631640,-1200.0,0.00023879,2]
[392342624,1761372631650,-874.48282953,0.0002388,2]
[392342625,1761372631660,-1245.4887586,0.00023989,2]
[392342626,1761372631669,-200.0,0.00024045,2]
[392342627,1761372631678,-522.57,0.00024074,2]
[392342628,1761372631687,-213.43,0.00024074,2]
[392342629,1761372631696,-166.66,0.00024125,30]
[392342630,1761372631705,-874.48282953,0.00024197,2]
[392342631,1761372631714,-290.11,0.0002427,2]
[392342632,1761372631723,-874.48282953,0.00024388,2]
[392342633,1761372631732,-774.58473575,0.00024593,2]
[392342634,1761372631742,-166.66,0.00024622,30]
[392342635,1761372631757,-743.39218515,0.0002491,2]
[392342636,1761372631768,-131.09064438,0.0002491,2]
[392342637,1761372631779,-290.11,0.00024944,2]
[392342638,1761372631789,-469.78015019,0.00024979,2]
[392342639,1761372631799,-874.48282955,0.00025014,2]
[392342640,1761372631809,-182.58026005,0.0002505,2]
[392342641,1761372631818,-522.46311979,0.0002505,2]
[392342642,1761372631830,-166.66,0.00025119,30]
[392342643,1761372631839,-29092.08177079,0.0002515,2]
[392342644,1761372631850,-294.84302077,0.0002515,2]
[392342645,1761372631861,-862.99587421,0.0002515,2]
[392342646,1761372631872,-1100.7542825,0.0002515,2]
[392342647,1761372631887,-1133.93352267,0.0002515,2]
[392342648,1761372631897,-942.71067945,0.0002515,2]
[392342649,1761372631917,-393.35,0.0002515,2]
[392342652,1761372637463,-10178.14941142,0.0002515,2]
[392342653,1761372637473,-625.73150591,0.00025264,2]
[392342654,1761372637484,-33945.76248325,0.00025265,2]
[392342655,1761372637573,-7141.1392094,0.00025265,2]
[392342656,1761372637583,-151.0,0.00025371,2]
[392342657,1761372637593,-151.0,0.00025371,2]
[392342658,1761372637602,-151.0,0.00025371,2]
[392342659,1761372637612,-151.0,0.00025371,2]
[392342660,1761372637621,-151.0,0.00025371,2]
[392342661,1761372637631,-151.0,0.00025371,2]
[392342662,1761372637641,-14.63373737,0.00025371,2]
[392342668,1761372639675,-136.36626263,0.00025371,2]
[392342669,1761372639686,-151.0,0.00025371,2]
[392342670,1761372639695,-151.0,0.00025371,2]
[392342671,1761372639703,-61.87521429,0.00025371,2]
[392342672,1761372639742,-89.12478571,0.00025371,2]
[392342673,1761372639760,-151.0,0.00025371,2]
[392342674,1761372639771,-151.0,0.00025371,2]
[392342675,1761372639781,-151.0,0.00025371,2]
[392342676,1761372639792,-151.0,0.00025371,2]
[392342677,1761372639802,-151.0,0.00025371,2]
[392342678,1761372639813,-151.0,0.00025371,2]
[392342679,1761372639823,-151.0,0.00025371,2]
[392342680,1761372639833,-151.0,0.00025371,2]
[392342681,1761372639843,-151.0,0.00025371,2]
[392342682,1761372639852,-31.390541,0.00025371,2]
[392342683,1761372639864,-119.609459,0.00025371,2]
[392342684,1761372639874,-833.33,0.00025371,2]
[392342685,1761372639886,-500.0,0.00025373,2]
[392342686,1761372639896,-506.51421574,0.00025374,2]
[392342687,1761372639907,-151.0,0.00025383,7]
[392342688,1761372639918,-1174.30659021,0.00025386,2]
[392342689,1761372639931,-664.76607487,0.00025386,2]
[392342690,1761372639954,-11772.2429794,0.00025386,2]
[392342700,1761372686478,171.66,0.00026474,120]
[392342701,1761372723803,359.16275005,0.00036709,120]
[392342702,1761372738165,421.0,0.00027397,120]
[392342703,1761372780659,1775.09,0.0002739,120]
[392342704,1761372875734,-4671.99371,0.0002515,2]
[392342705,1761372875757,-4671.99371,0.0002521,2]
[392342706,1761372875783,-151.0,0.00025226,7]
[392342707,1761372875807,-151.0,0.00025226,7]
[392342708,1761372875831,-10354.01258,0.00025229,2]
[392342709,1761372917239,246.0,0.00036709,30]
[392342710,1761372920486,-1040.0,0.00025228,2]
[392342711,1761372920511,-38960.0,0.00025229,2]
[392342712,1761372938050,-29854.9471211,0.00025229,2]
[392342713,1761372938073,-2155.5720139,0.00025229,2]
[392342714,1761372938097,-151.0,0.00025371,2]
[392342715,1761372938120,-151.0,0.00025371,2]
[392342716,1761372938143,-151.0,0.00025371,2]
[392342717,1761372938166,-151.0,0.00025371,2]
[392342718,1761372938190,-151.0,0.00025371,2]
[392342719,1761372938213,-151.0,0.00025371,2]
[392342720,1761372938239,-151.0,0.00025371,2]
[392342721,1761372938262,-151.0,0.00025371,2]
[392342722,1761372938284,-151.0,0.00025371,2]
[392342723,1761372938307,-151.0,0.00025371,2]
[392342724,1761372938328,-151.0,0.00025371,2]
[392342725,1761372938352,-151.0,0.00025371,2]
[392342726,1761372938375,-151.0,0.00025371,2]
[392342727,1761372938398,-151.0,0.00025371,2]
[392342728,1761372938420,-151.0,0.00025371,2]
[392342729,1761372938443,-151.0,0.00025371,2]
[392342730,1761372938465,-151.0,0.00025371,2]
[392342731,1761372938488,-239.83189209,0.00025371,2]
[392342732,1761372938511,-151.0,0.00025371,2]
[392342733,1761372938534,-151.0,0.00025371,2]
[392342734,1761372938557,-151.0,0.00025371,2]
[392342735,1761372938579,-151.0,0.00025371,2]
[392342736,1761372938601,-151.0,0.00025371,2]
[392342737,1761372938624,-201.83542316,0.00025371,2]
[392342738,1761372938645,-151.0,0.00025371,2]
[392342739,1761372938681,-151.0,0.00025371,2]
[392342740,1761372938704,-500.0,0.00025373,2]
[392342741,1761372938727,-151.0,0.00025383,7]
[392342742,1761372938750,-438.01205413,0.00025385,2]
[392342743,1761372938774,-350.12901306,0.00025385,2]
[392342744,1761372938797,-15040.82654702,0.00025386,2]
[392342745,1761372938820,-1079.2877563,0.00025386,2]
[392342746,1761372938844,-16752.5685889,0.00025386,2]
[392342747,1761372938867,-718.37410112,0.00025399,2]
[392342748,1761372938890,-191.39154758,0.00025399,2]
[392342749,1761372938914,-163.789862,0.00025399,7]
[392342750,1761372938939,-163.789862,0.00025399,7]
[392342751,1761372938962,-163.789862,0.00025399,7]
[392342752,1761372938987,-163.789862,0.00025399,7]
[392342753,1761372939010,-151.0,0.00025399,7]
[392342754,1761372939033,-151.0,0.00025399,7]
[392342755,1761372939057,-867.13154,0.00025399,2]
[392342756,1761372939083,-151.0,0.0002546,7]
[392342757,1761372939107,-151.0,0.0002546,7]
[392342758,1761372939131,-151.0,0.0002546,7]
[392342759,1761372939154,-166.66,0.00025617,30]
[392342760,1761372939178,-290.11,0.00025618,2]
[392342761,1761372939201,-833.33,0.00025645,2]
[392342762,1761372939436,-223.93,0.00025742,2]
[392342763,1761372939460,-833.33,0.00025919,2]
[392342764,1761372939481,-183.85123454,0.00025921,2]
[392342765,1761372939502,-180.0,0.00026,2]
[392342766,1761372939523,-460.78,0.00026032,2]
[392342767,1761372939545,-166.66,0.00026114,30]
[392342768,1761372939566,-833.33,0.00026193,2]
[392342769,1761372939589,-300.0,0.00026225,7]
[392342770,1761372939610,-200.0,0.00026289,2]
[392342771,1761372939632,-151.0,0.0002646,7]
[392342772,1761372939653,-9992.33,0.00026463,2]
[392342773,1761372939676,-163.789862,0.00026463,7]
[392342774,1761372939698,-163.789862,0.00026463,7]
[392342775,1761372939722,-163.789862,0.00026463,7]
[392342776,1761372939745,-163.789862,0.00026463,7]
[392342777,1761372939767,-151.0,0.00026463,7]
[392342778,1761372939789,-151.0,0.00026463,7]
[392342779,1761372939812,-151.0,0.00026463,7]
[392342780,1761372939834,-151.0,0.00026463,7]
[392342781,1761372939857,-185.605529,0.00026463,7]
[392342782,1761372939880,-833.33,0.00026467,2]
[392342783,1761372939901,-1478.34,0.00026512,2]
[392342784,1761372939925,-153.62,0.00026676,2]
[392342785,1761372939947,-833.33,0.00026741,2]
[392342786,1761372939969,-10842.02,0.00026903,2]
[392342787,1761372939990,-5000.0,0.00026934,2]
[392342788,1761372940013,-151.0,0.00026934,7]
[392342789,1761372940036,-163.789862,0.00026934,7]
[392342790,1761372940060,-163.789862,0.00026934,7]
[392342791,1761372940083,-163.789862,0.00026934,7]
[392342792,1761372940105,-163.789862,0.00026934,7]
[392342793,1761372940127,-151.0,0.00026934,7]
[392342794,1761372940149,-67.0572941,0.00026934,7]
[392342795,1761372987931,-225.575936,0.0002546,7]
[392342796,1761372987956,-225.575936,0.0002546,7]
[392342797,1761372988277,-225.575936,0.0002546,7]
[392342798,1761372988302,-225.575936,0.0002546,7]
[392342799,1761372988327,-225.575936,0.00026463,7]
[392342800,1761372988350,-225.575936,0.00026463,7]
[392342801,1761372988376,-225.575936,0.00026463,7]
[392342802,1761372988399,-225.575936,0.00026463,7]
[392342803,1761372988421,-83.9427059,0.00026934,7]
[392342804,1761372988444,-359.18705055,0.00026934,2]
[392342805,1761372988466,-191.39154758,0.00026934,2]
[392342806,1761372988489,-3143.13981,0.00026934,2]
[392342807,1761372988513,-151.0,0.00026989,7]
[392342808,1761372988537,-151.0,0.00026989,7]
[392342809,1761372988559,-225.575936,0.00026989,7]
[392342810,1761372988583,-225.575936,0.00026989,7]
[392342811,1761372988607,-225.575936,0.00026989,7]
[392342812,1761372988632,-225.575936,0.00026989,7]
[392342813,1761372988654,-160.93383,0.00026993,7]
[392342814,1761372988675,-3052.49382397,0.00026993,2]
[392342815,1761373283286,150.0,0.00026889,120]
[392342818,1761373423348,453.74466673,0.00036707,120]
[392342819,1761373507740,141000.0,0.00015,2]
[392342820,1761373507771,60492.54878865,0.00015,2]
[392342821,1761373507799,5272.93932122,0.00015,2]
[392342835,1761373831738,-286.59001843,0.00023854,2]
[392342836,1761373831748,-224.36998157,0.00025963,2]
[392342837,1761373831796,-75.63001843,0.00025963,2]
[392342838,1761373831806,-300.0,0.00025963,2]
[392342839,1761373831816,-1615.66842441,0.00025964,2]
[392342840,1761373831827,-3927.44628927,0.00025964,2]
[392342842,1761373832817,-1093.94561555,0.00025964,2]
[392342843,1761373833314,-3186.82947085,0.00025964,2]
[392342844,1761373833324,-708.34,0.00026544,2]
[392342845,1761373833333,-150.0,0.00026556,2]
[392342846,1761373833343,-151.0,0.00026699,7]
[392342847,1761373833354,-164.9145281,0.00026699,7]
[392342848,1761373833363,-262.29562121,0.00026701,2]
[392342849,1761373833372,-209.58335556,0.00026701,2]
[392342850,1761373833382,-551.69874704,0.00026701,2]
[392342851,1761373833391,-456.5255307,0.00026702,2]
[392342852,1761373833402,-672.0,0.00026702,2]
[392342853,1761373833417,-1955.7792455,0.00026702,2]
[392342854,1761373833426,-4863.80060419,0.00026702,2]
[392342855,1761373833437,-685.08971641,0.00026702,2]
[392342856,1761373833478,-495.06548657,0.00026702,2]
[392342857,1761373833494,-295.99999997,0.00026702,2]
[392342858,1761373833504,-586.4,0.00026702,2]
[392342859,1761373833515,-465.9953285,0.00026702,2]
[392342860,1761373833600,-3135.65686149,0.00026702,2]
[392342861,1761373833611,-408.2574532,0.00026702,2]
[392342862,1761373833622,-323.3292545,0.00026702,2]
[392342865,1761373839973,-500.0,0.00026542,2]
[392342866,1761373839982,-184.74108254,0.00026542,2]
[392342867,1761373839992,-315.25891746,0.00026542,2]
[392342868,1761373840001,-500.0,0.00026542,2]
[392342869,1761373840011,-500.0,0.00026542,2]
[392342870,1761373840020,-500.0,0.00026542,2]
[392342871,1761373840029,-500.0,0.00026542,2]
[392342872,1761373840039,-500.0,0.00026542,2]
[392342873,1761373840048,-518.34056785,0.00026542,2]